{"text_format":"3","workbook":"xlsx","n_sheets":12,"sheets":["Intro","Introduction","Section 1","Section 2","Section 3 - AI","Section 4 Donor","Section 5 - Surrogacy","Section 6 - Storage","Section 7 - PGT","Treatment cycles","Donor Registers","Import and export"],"not_rendered":{"charts":2,"images":1,"defined_names":13},"read":"whole","date_system":"1900"}

{"sheet":"Intro","index":0,"n_rows":85,"n_cols":12,"rows_kept":85,"hidden":true,"merged":[[19,1,26,1],[44,1,46,1],[57,1,59,1]]}
["ART treatment outcome data is collected from registered ART providers directly by VARTA and by the University of Technology Sydney (UTS)."]
[]
["This report outlines the procedures carried out for registered ART providers that are currently accredited by RTAC under the Assisted Reproductive Treatment Act 2008. Data is provided on a financial year basis ( between 1 July 2015 and 30 June 2016) as required under the Act. "]
[]
["The following dates indicate when the latest updates were provided – pregnancy outcomes for each unit will only have been recorded up to these dates:"]
["• XX/XX/2016 Ballarat IVF"]
["• XX/XX/2016 City Fertility Centre"]
["• XX/XX/2016 City Babies"]
["• XX/XX/2016 Melbourne IVF"]
["• XX/XX/2016 Monash IVF"]
[]
["This report includes all forms of assisted reproductive treatment (ART) cycles and artificial insemination (AI) using either partner sperm or donor sperm. Cycles involving: purely egg or embryo movement; embryo disposal; or cancelled prior to Follicle Stimulating Hormone (FSH) stimulation or prior to thawing the egg or embryo, are not included."]
[]
["Where a woman may have treatment at more than one treatment site, the information is presented per registered ART provider. Elsewhere, details of each treatment site for a registered ART provider are provided. "]
[]
[]
[]
[]
[]
[null,"Insert diagram from  Understanding IVF success rates brochure and mark which tables relate to which part of the process (where applicable)"]
{"$rows_empty":23}
[{"$nulls":3},"Figure 7, Number of patients and treatment cycles per financial year, 2008-09 to 2014-15"]
["The data in the VARTA annual report cannot be used to compare success rates between ART procedures and between treatment sites. In evidence-based clinical practice, the most reliable and strongest evidence to compare the efficacy between ART procedures or to compare the success rates between treatment sites is generated from prospective randomised controlled trials (RCT). Only RCT can ensure that the ‘known’ and ‘unknown’ factors which impact the success rate are evenly distributed between comparison groups. ","Too technical. Align more with copy used in Understanding IVF success rates brochure",null,null,"2008-09","2009-10","2010-11","2011-12","2012-13","2013-14","2014-15","2015-16"]
["The data for VARTA annual report are collected retrospectively. ART clinics in Victoria practice very differently in terms of patient selection and use of laboratory techniques. ‘Known’ factors; such as age of the woman treated; the type of subfertility problem; the length of subfertility; previous pregnancies and live births; the history of pregnancy losses; the number of cycles undergone; and other ‘unknown’ factors are not evenly distributed between treatment sites.",null,null,"Number of patients",9262,9525,9685,10252,10598,11113,11308]
["Therefore, VARTA annual report data only presents number of cycles; type of ART procedures; and number of pregnancies and number of births, not the success rates. Given the differences in ‘known’ and ‘unknown’ factors between treatment sites, it is not correct to calculate the success rate by number of live births over number of cycles and compare between treatment sites. Furthermore, the information on intention to treat is not available in the VARTA data. It is not correct to compare the efficacy between ART procedures since cancelled cycles and ‘known’ and ‘unknown’ factors are not taken into consideration.",null,null,"< 35 years",{"v":36.56877564240985,"d":"36.6"},{"v":35.968503937007874,"d":"36.0"},{"v":36.293236964377904,"d":"36.3"},{"$f":"H50/H46*100","v":{"v":36.04174795161919,"d":"36.0"}},{"$f":"I50/I46*100","v":{"v":36.73334591432346,"d":"36.7"}},{"$f":"J50/J46*100","v":{"v":37.47862863313237,"d":"37.5"}},{"$f":"K50/K46*100","v":{"v":37.58401131941988,"d":"37.6"}}]
[{"$nulls":3},"35-39 years",{"v":38.00475059382423,"d":"38.0"},{"v":37.637795275590555,"d":"37.6"},{"v":36.375838926174495,"d":"36.4"},{"$f":"H51/H46*100","v":{"v":36.65626219274288,"d":"36.7"}},{"$f":"I51/I46*100","v":{"v":35.667107001321,"d":"35.7"}},{"$f":"J51/J46*100","v":{"v":35.5799514082606,"d":"35.6"}},{"$f":"K51/K46*100","v":{"v":35.68270251149628,"d":"35.7"}}]
["Data outcomes table of content:",null,null,"≥ 40 years",{"v":25.426473763765927,"d":"25.4"},{"v":26.393700787401574,"d":"26.4"},{"v":27.3309241094476,"d":"27.3"},{"$f":"H52/H46*100","v":{"v":27.301989855637927,"d":"27.3"}},{"$f":"I52/I46*100","v":{"v":27.599547084355542,"d":"27.6"}},{"$f":"J52/J46*100","v":{"v":26.94141995860704,"d":"26.9"}},{"$f":"K52/K46*100","v":{"v":26.733286169083836,"d":"26.7"}}]
["Section 1 - Final outcomes for treatment cycles commenced in 2014-15 financial year",null,null,"< 35 years",3387,3426,3515,3695,3893,4165,4250]
["Section 2 - Outcomes from treatment cycles, 2015–16 financial year",null,null,"35-39 years",3520,3585,3523,3758,3780,3954,4035]
["Section 3 - Multiple pregnancies, 2015-16 financial year",null,null,"≥ 40 years",2355,2514,2647,2799,2925,2994,3023]
["Section 4 - Donor treatment, 2015–16 financial year"]
["Section 5 - Surrogacy, 2015-16 financial year",null,null,"Number of cycles",17687,18530,18057,{"$f":"SUM(H56:H61)","v":19361},{"$f":"SUM(I56:I61)","v":19847},20632,20569]
["Section 6 - Storage of gametes, 2015-16 financial year"]
["Section 7 -  Preimplantation genetic diagnosis and screening, 2015-16 financial year",null,null,"Fresh",11068,10854,10655,11489,11455,11889,11772]
[{"$nulls":3},"Thaw",6425,6364,6417,6916,7212,7255,7115]
[null,"Diagrams to move under Focus 4 Monitoring> Clinic data trends"]
[{"$nulls":3},"AI",null,1133,728,611,842,972,1088]
[{"$nulls":3},"DI",136,167,214,275,283,471,555]
[{"$nulls":3},"GIFT/Surr",58,12,43,70,55,45,39]
[]
[]
[{"$nulls":3},"Note:"]
[{"$nulls":3},"AI was not reported for 2008-09"]
[{"$nulls":3},"2008-09, 2009-10, 2010-11, 2011-12, 2012-13, 2013-14, 2014-15 data were from the final outcome data"]
[{"$nulls":3},"2015-16 data were from the treatment data "]
[]
[]
[]
[]
[]
[]
["Final 2014-15 pregnancy outcomes data was updated in September 2015. There were XX% (XX of XXXX pregnancies) of 2014-15 data with unknown outcomes.","Report under Focus 4 Monitoring> Clinic data trends"]
[]
["Legend to appear as required on each relevant section"]
[]
["Legend  (for full glossary, refer to page XX)"]
["Birth: A birth event - the delivery of a baby or babies."]
["Live birth: birth of a living baby or babies (multiple births are classified as a single live birth)"]
["Babies born: includes liveborn and still born"]
["Liveborn babies: A baby that is born alive"]
["Age at the first treatment: Age is based on the cycle date -either the first date where FSH/stimulation drug is administrated, or the date of Last Menstrual Period (LMP) for unstimulated cycles (including natural fresh cycles and thaw cycles). "]
["Clinical pregnancy: A pregnancy verified by ultrasound at six-seven weeks gestation. A clinical pregnancy does not guarantee the birth of a baby, as miscarriages occur. Women can have more than 1 clinical pregnancy in the financial year"]
["Thawed: cryopreserved/frozen eggs, sperm or embryos must be thawed prior to transfer"]

{"sheet":"Introduction","index":1,"n_rows":2,"n_cols":1,"rows_kept":2}
["VARTA collects data from all registered ART providers in Victoria to report on fertility treatment trends and fertility treatment outcomes over time. The National Perinatal Epidemiology Statistics Unit (NPESU) at the University of New South Wales assists with this data collection. However, data in tables 1.6, 4.2, 4.3, 4.4, 4.5, 6.1, 6.2, 6.3, 6.4 6.5 and 7 were submitted by clinics directly to VARTA."]
["Section one includes the outcomes from treatment that occurred in 2020-21. This is being reported in 2022 because of the time it takes to follow up treatment, including clinical pregnancy and live birth rates arising from treatment that occurred the year before. Sections two to seven include data from treatment that occurred in 2021-22. An update on the outcomes from this treatment, including live births, will be available in 2023. \n\nFor sections two to seven, registered clinics were able to provide data to NPESU up until the submission deadline of 15 July 2022. They were all given the opportunity to provide any updates to clinical pregnancy outcomes by 29 July 2022. Therefore, clinical pregnancy rates should be interpreted with caution as ultrasound scans confirming clinical pregnancies may have not been completed before data was submitted. \n\nThis report includes all forms of ART cycles and artificial insemination (AI) using either partner sperm or donor sperm. It does not include: \n● Egg or embryo movement from or to a clinic \n● Embryo disposal procedures \n● Cycles cancelled prior to follicle stimulating hormone (FSH) stimulation \n● Cycles cancelled before thawing an egg or embryo. \n\nWhere a woman may have treatment at more than one clinic, the information is presented per registered ART provider. Women can also have more than one cycle during a financial year. Keep this in mind when referring to data discussing the number of cycles. The diagram on the following page explains the ART process to help readers better understand the data reported."]

{"sheet":"Section 1","index":2,"n_rows":188,"n_cols":11,"rows_kept":188,"merged":[[3,0,3,5],[4,0,4,5],[4,6,4,7],[9,0,10,0],[9,1,9,4],[9,5,10,5],[9,6,10,6],[9,7,10,7],[9,8,10,8],[22,0,22,5],[26,0,27,0],[27,1,28,1],[27,2,27,5],[27,6,28,6],[27,7,28,7],[27,8,28,8],[27,9,28,9],[46,1,46,5],[46,6,46,8],[48,1,48,5],[59,1,59,5],[67,1,67,5],[69,1,69,5],[80,1,80,5],[89,1,89,4],[101,1,101,4],[110,1,110,4],[120,1,120,4],[127,1,127,5],[127,6,127,10],[157,0,157,6],[159,0,159,8],[169,0,169,10],[180,0,180,8]]}
["SECTION 1"]
["Final outcomes for treatment cycles commenced in 2020-21 financial year"]
[]
["This section includes a final outcome of treatment procedures undertaken in 2020-21. These final figures were not available at the time of the production of the 2021 Annual Report. Similarly, this year, a full report on treatment outcomes will not be possible until the 2023 Annual Report. As pregnancies are ongoing, some outcomes are not known at the time of this report going to print."]
[]
["Overview "]
[]
["Table 1.1 Number of women treated, Victoria, 2020-21 financial year"]
[]
["Treatment site","No. of women treated",{"$nulls":3},"No. of women with fresh embryos transferred","No. of women with thawed embryos transferred","No. of women with AI using partner sperm","No. of women with AI using donor sperm"]
[null,"< 35","35-39","≥ 40","All"]
["Adora Fertility, Greensborough    ",450,403,195,1048,584,473,73,0]
["Ballarat IVF, Wendouree           ",201,132,57,390,41,251,8,28]
["City Babies, Richmond             ",64,41,15,120,0,0,120,0]
["City Fertility Centre, Melbourne and Bundoora sites",373,334,176,883,216,392,40,121]
["Genea, Melbourne                  ",69,65,48,182,75,81,6,2]
["Melbourne IVF, all sites including RWH         ",2152,2311,1304,5767,2208,2534,286,201]
["Monash IVF, all sites            ",1543,1593,1091,4227,1172,1883,233,66]
["Newlife IVF, Box Hill             ",299,339,202,840,281,372,27,20]
["Number 1 Fertility, East Melbourne and Geelong sites",719,1014,493,2226,631,855,207,6]
[]
["Aggregated total",{"$f":"SUM(B12:B20)","v":5870},6232,3581,15683,5208,6841,1000,444]
["AI: artificial insemination."]
[]
[]
["Table 1.2 Number of treatment cycles and pregnancy and birth outcomes, Victoria, 2020-21 financial year"]
["Treatment site"]
[null,"No. of cycles included","No. of births",{"$nulls":3},"No. of live births","No. of babies born","No. of\nliveborn\nbabies","Pregnancy\noutcome\nunknown"]
["Adora Fertility, Greensborough    ",null,"No. of singletons","No. of sets\nof twins","No. of sets\nof higher order multiples","All"]
["Ballarat IVF, Wendouree           ",1963,363,10,0,373,366,383,376,1]
["City Babies, Richmond             ",877,144,1,0,145,127,146,128,11]
["City Fertility Centre, Melbourne and Bundoora sites",249,19,2,1,22,22,26,26,0]
["Genea, Melbourne                  ",1660,209,11,0,220,216,231,227,1]
["Melbourne IVF, all sites including RWH                   ",392,54,1,0,55,53,56,54,0]
["Monash IVF, all sites            ",11047,1915,39,2,1956,1946,1999,1987,0]
["Newlife IVF, Box Hill             ",7326,1211,39,2,1252,1238,1295,1280,0]
["Number 1 Fertility, East Melbourne and Geelong sites",1708,289,12,0,301,299,313,310,0]
[null,4540,606,10,0,616,608,626,618,2]
["Aggregated total"]
[null,{"$f":"SUM(B30:B38)","v":29762},4810,125,5,4940,4875,5075,5006,15]
[]
["Legend\nAge at first treatment: The age of a person when they begin treatment – either the first date when a stimulation drug is administrated or the date of the last menstrual period (LMP) for unstimulated cycles (including natural fresh cycles and thaw cycles). \nBabies born: Includes liveborn and stillborn. \nBirth: A birth event – the delivery of a baby or babies. \nLive birth: Birth of a living baby or babies (multiple births are classified as a single live birth). \nLiveborn baby: A baby that is born alive. \nClinical pregnancy: A pregnancy verified by ultrasound at six/seven weeks’ gestation. A clinical pregnancy does not guarantee the birth of a baby as miscarriages can occur. Women can have more than one clinical pregnancy in a financial year. \nThawed: Cryopreserved (frozen) eggs, sperm or embryos must be thawed prior to use."]
[]
["Table 1.3a Fresh embryo transfer cycles and pregnancy outcomes, Victoria, 2020-21 financial year"]
["This data includes fresh embryos formed from thawed eggs"]
[]
[null,"Women using embryos derived from their own, their partner's or donated eggs"]
["Treatment site","No. of cycles with fresh embryo transferred","% of single embryo transfer","No. of clinical pregnancies","No. of live births","% of live births per fresh embryo transfer"]
["Adora Fertility, Greensborough    ","All ages by Treatment site"]
["Ballarat IVF, Wendouree           ",767,{"v":86.8318099975586,"d":"86.8"},214,157,{"$f":"SUM(E50/B50)*100","v":{"v":20.469361147327252,"d":"20.47"}}]
["City Fertility Centre, Melbourne and Bundoora sites",42,{"v":97.61904907226562,"d":"97.6"},13,7,{"$f":"SUM(E51/B51)*100","v":{"v":16.666666666666664,"d":"16.67"}}]
["Genea, Melbourne                  ",243,92.6,60,47,{"v":19.34156378600823,"d":"19.34"}]
["Melbourne IVF, all sites including RWH",104,{"v":92.3076934814453,"d":"92.3"},29,20,{"v":19.230769230769234,"d":"19.23"}]
["Monash IVF, all sites             ",2628,96.1,922,716,{"v":27.24505327245053,"d":"27.25"}]
["Newlife IVF, Box Hill             ",1336,88.9,436,337,{"v":25.22455089820359,"d":"25.22"}]
["Number 1 Fertility, East Melbourne",350,{"v":92.57142639160156,"d":"92.6"},123,90,{"v":25.71428571428571,"d":"25.71"}]
["Aggregated total",763,{"v":100,"d":"100.0"},245,174,{"v":22.804718217562254,"d":"22.80"}]
[null,{"$f":"SUM(B50:B57)","v":6233},{"v":93.55046081542969,"d":"93.6"},{"$f":"SUM(D50:D57)","v":2042},{"$f":"SUM(E50:E57)","v":1548},{"v":24.83555270335312,"d":"24.84"}]
["Age group"]
["<35","All treatment sites by age group"]
["35-39",2108,{"v":97.62808227539062,"d":"97.6"},893,741,{"$f":"SUM(E61/B61)*100","v":{"v":35.15180265654649,"d":"35.15"}}]
[">=40",2404,{"v":95.34109497070312,"d":"95.3"},824,619,{"$f":"SUM(E62/B62)*100","v":{"v":25.74875207986689,"d":"25.75"}}]
["Aggregated total",1721,{"v":86.05461883544922,"d":"86.1"},325,188,{"v":10.923881464264962,"d":"10.92"}]
[null,{"$f":"SUM(B61:B63)","v":6233},{"v":93.55046081542969,"d":"93.6"},{"$f":"SUM(D61:D63)","v":2042},{"$f":"SUM(E61:E63)","v":1548},{"v":24.83555270335312,"d":"24.84"}]
[]
["Table 1.3b Thawed embryo transfer cycles and pregnancy outcomes, Victoria, 2020-21 financial year"]
[]
[null,"Women using own eggs"]
["Treatment site","No. of cycles with thawed embryos transferred","% of single embryo transfer","No. of clinical pregnancies","No. of live births","% of live births per thawed embryo transfer"]
["Adora Fertility, Greensborough    ","All ages by Treatment site"]
["Ballarat IVF, Wendouree           ",696,{"v":97.2701187133789,"d":"97.3"},260,201,{"$f":"SUM(E71/B71)*100","v":{"v":28.879310344827587,"d":"28.88"}}]
["City Fertility Centre, Melbourne and Bundoora sites",371,{"v":99.4609146118164,"d":"99.5"},159,107,{"$f":"SUM(E72/B72)*100","v":{"v":28.84097035040431,"d":"28.84"}}]
["Genea, Melbourne                  ",511,{"v":95.129158512,"d":"95.1"},172,141,{"v":27.59295499021526,"d":"27.59"}]
["Melbourne IVF, all sites including RWH",118,{"v":97.45762634277344,"d":"97.5"},40,30,{"v":25.423728813559322,"d":"25.42"}]
["Monash IVF, all sites                   ",3632,{"v":95.515748898,"d":"95.5"},1386,1108,{"v":30.506607929515418,"d":"30.51"}]
["Newlife IVF, Box Hill             ",2346,{"v":95.322847399,"d":"95.3"},994,800,{"v":34.10059676044331,"d":"34.10"}]
["Number 1 Fertility, East Melbourne",502,{"v":96.81275177001953,"d":"96.8"},232,192,{"v":38.24701195219124,"d":"38.25"}]
["Aggregated total",1169,{"v":100,"d":"100.0"},489,406,{"v":34.73053892215569,"d":"34.73"}]
[null,{"$f":"SUM(B71:B78)","v":9345},{"v":96.40449523925781,"d":"96.4"},{"$f":"SUM(D71:D78)","v":3732},{"$f":"SUM(E71:E78)","v":2985},{"v":31.942215088282506,"d":"31.94"}]
["Age group"]
["<35","All treatment sites by age group"]
["35-39",3739,{"v":96.79058837890625,"d":"96.8"},1682,1417,{"v":37.897833645359725,"d":"37.90"}]
[">=40",3871,{"v":96.97752380371094,"d":"97.0"},1546,1215,{"v":31.38723843967967,"d":"31.39"}]
["Aggregated total",1735,{"v":94.2939453125,"d":"94.3"},504,353,{"v":20.345821325648412,"d":"20.35"}]
[null,{"$f":"SUM(B82:B84)","v":9345},{"v":96.40449523925781,"d":"96.4"},{"$f":"SUM(D82:D84)","v":3732},2985,{"v":31.942215088282506,"d":"31.94"}]
[]
["Table 1.3c Artificial insemination (AI) cycles usng partner sperm and pregnancy outcomes, Victoria, 2020-21 financial year"]
[]
["Treatment site","No. of cycles with AI performed","No. of clinical pregnancies","No. of live births","% of live births per AI cycle using partner sperm"]
["Adora Fertility, Greensborough    ","All ages by Treatment site"]
["Ballarat IVF, Wendouree           ",109,11,8,{"$f":"SUM(D91/B91)*100","v":{"v":7.339449541284404,"d":"7.34"}}]
["City Babies, Richmond             ",12,0,0,{"$f":"SUM(D92/B92)*100","v":{"v":0,"d":"0.00"}}]
["City Fertility Centre, Melbourne and Bundoora sites",249,29,22,{"v":8.835341365461847,"d":"8.84"}]
["Genea, Melbourne                  ",49,9,7,{"v":14.285714285714285,"d":"14.29"}]
["Melbourne IVF, all sites including RWH           ",15,1,1,{"v":6.666666666666667,"d":"6.67"}]
["Monash IVF, all sites                  ",440,55,46,{"v":10.454545454545453,"d":"10.45"}]
["Newlife IVF, Box Hill             ",362,39,26,{"v":7.18232044198895,"d":"7.18"}]
["Number 1 Fertility, East Melbourne",45,6,4,{"v":8.88888888888889,"d":"8.89"}]
["Aggregated total",310,21,14,{"v":4.516129032258064,"d":"4.52"}]
[null,{"$f":"SUM(B91:B99)","v":1591},{"$f":"SUM(C91:C99)","v":171},{"$f":"SUM(D91:D99)","v":128},{"v":8.045254556882464,"d":"8.05"}]
["Age group"]
["<35","All treatment sites by age group"]
["35-39",771,86,66,{"v":8.560311284046692,"d":"8.56"}]
[">=40",606,76,56,{"v":9.24092409240924,"d":"9.24"}]
["Aggregated total",214,9,6,{"v":2.803738317757009,"d":"2.80"}]
[null,{"$f":"SUM(B103:B105)","v":1591},{"$f":"SUM(C103:C105)","v":171},{"$f":"SUM(D103:D105)","v":128},{"v":8.045254556882464,"d":"8.05"}]
[]
["Table 1.3d Artificial insemination (AI) cycles using donor sperm and pregnancy outcomes, Victoria, 2020-21 financial year"]
[]
["Treatment site","No. of cycles with AI performed","No. of clinical pregnancies","No. of live births","% of live births per AI cycle using donor sperm"]
["Ballarat IVF, Wendouree           ","All ages by Treatment site"]
["City Fertility Centre, Melbourne and Bundoora sites",46,5,4,{"$f":"SUM(D112/B112)*100","v":{"v":8.695652173913043,"d":"8.70"}}]
["Genea, Melbourne                  ",181,18,17,{"$f":"SUM(D113/B113)*100","v":{"v":9.392265193370166,"d":"9.39"}}]
["Melbourne IVF, all sites including RWH                   ",4,0,0,{"v":0,"d":"0.00"}]
["Monash IVF, all sites                       ",330,50,35,{"v":10.606060606060606,"d":"10.61"}]
["Newlife IVF, Box Hill             ",94,20,19,{"v":20.212765957446805,"d":"20.21"}]
["Number 1 Fertility, East Melbourne",30,6,6,{"v":20,"d":"20.00"}]
["Aggregated total",8,0,0,{"v":0,"d":"0.00"}]
[null,{"$f":"SUM(B112:B118)","v":693},{"$f":"SUM(C112:C118)","v":99},{"$f":"SUM(D112:D118)","v":81},{"v":11.688311688311687,"d":"11.69"}]
["Age group"]
["<35","All treatment sites by age group"]
["35-39",336,52,46,{"v":13.690476190476192,"d":"13.69"}]
[">=40",321,43,33,{"v":10.2803738317757,"d":"10.28"}]
["Aggregated total",36,4,2,{"v":5.555555555555555,"d":"5.56"}]
[null,{"$f":"SUM(B122:B124)","v":693},{"$f":"SUM(C122:C124)","v":99},{"$f":"SUM(D122:D124)","v":81},{"v":11.688311688311687,"d":"11.69"}]
[]
["Table 1.4 Treatment using thawed eggs and pregnancy outcomes, Victoria, 2020-21 financial year"]
[null,"Women using own eggs",{"$nulls":4},"Women using donor/partner eggs*"]
["Treatment site","No. of cycle with eggs thawed","No. of cycles with embryos transferred","No. of clinical pregnancies","No. of live births","% of live births per embryo transfer from a woman's own thawed eggs","No. of cycle with eggs thawed","No. of cycles with embryos transferred","No. of clinical pregnancies","No. of live births","% of live births per embryo transfer from a donor or partner thawed eggs"]
["Adora Fertility, Greensborough    ",3,3,0,0,{"$f":"SUM(E130/C130)*100","v":{"v":0,"d":"0.00"}},0,0,0,0,{"v":0,"d":"0.00"}]
["Ballarat IVF, Wendouree           ",5,0,0,0,{"v":0,"d":"0.00"},0,0,0,0,{"v":0,"d":"0.00"}]
["City Fertility Centre, Melbourne and Bundoora sites",9,5,2,2,{"$f":"SUM(E132/C132)*100","v":{"v":40,"d":"40.00"}},2,2,2,1,{"$f":"SUM(J132/H132)*100","v":{"v":50,"d":"50.00"}}]
["Genea, Melbourne                  ",5,5,0,0,{"v":0,"d":"0.00"},0,0,0,0,{"v":0,"d":"0.00"}]
["Melbourne IVF, all sites including RWH           ",114,74,34,25,{"v":33.78378378378378,"d":"33.78"},14,13,5,3,{"v":23.076923076923077,"d":"23.08"}]
["Monash IVF, all sites          ",105,45,18,14,{"v":31.11111111111111,"d":"31.11"},58,47,19,18,{"v":38.297872340425535,"d":"38.30"}]
["Newlife IVF, Box Hill             ",20,9,6,4,{"v":44.44444444444444,"d":"44.44"},0,0,0,0,{"v":0,"d":"0.00"}]
["Number 1 Fertility, East Melbourne",47,32,9,5,{"v":15.625,"d":"15.63"},8,7,2,1,{"v":14.285714285714285,"d":"14.29"}]
["Aggregated total",{"$f":"SUM(B130:B137)","v":308},{"$f":"SUM(C130:C137)","v":173},{"$f":"SUM(D130:D137)","v":69},{"$f":"SUM(E130:E137)","v":50},{"v":28.901734104046245,"d":"28.90"},{"$f":"SUM(G130:G137)","v":82},{"$f":"SUM(H130:H137)","v":69},{"$f":"SUM(I130:I137)","v":28},{"$f":"SUM(J130:J137)","v":23},{"v":33.33333333333333,"d":"33.33"}]
["* Donor eggs include those imported from interstate or overseas."]
[]
[]
["Table 1.5 Surrogacy cycles and pregnancy outcomes, Victoria, 2020-21 financial year"]
["This table includes cycles where embryo(s) was transferred to a surrogate woman. "]
["Treatment site"]
["City Fertility Centre, Melbourne  ","No. of surrogate women","No. of cycles with embryos transferred*","No. of clinical pregnancies","No. of live births","% of live births per embryo transfer in a surrogacy cycle"]
["Melbourne IVF, East Melbourne     ",2,2,2,2,{"$f":"SUM(E146/C146)*100","v":{"v":100,"d":"100.00"}}]
["Monash IVF, all sites             ",9,13,7,6,{"$f":"SUM(E147/C147)*100","v":{"v":46.15384615384615,"d":"46.15"}}]
["Newlife IVF, Box Hill             ",22,32,17,15,{"v":46.875,"d":"46.88"}]
["Number 1 Fertility, East Melbourne",3,4,1,0,{"v":0,"d":"0.00"}]
["Aggregated total",8,11,4,4,{"v":36.36363636363637,"d":"36.36"}]
[null,{"$f":"SUM(B146:B150)","v":44},{"$f":"SUM(C146:C150)","v":62},{"$f":"SUM(D146:D150)","v":31},{"$f":"SUM(E146:E150)","v":27},{"v":43.54838709677419,"d":"43.55"}]
[]
[]
[]
[]
[]
["Table 1.6 Outcome for Preimplantation testing (PGT), 2020-21 financial year"]
["PGT-M, PGT-SR and sex selection are used for patients with a known genetic risk. PGT-A is used for the detection of numerical chromosome abnormalities.\nPGT IVF/ICSI cycles may be initiated with the aim of freezing all embryos (no embryos transferred)."]
["Registered ART provider (all sites)","No. of women who had embryos tested","No. of embryos\ntested*","No. of embryos deemed suitable\nfor transfer","No. of women who had an embryo transfer**","No. of embryos transferred following PGT","No. of clinical pregnancies","No. of live births","% of live births per embryo transfer following PGT"]
["Preimplantation genetic testing for single gene disorders (PGT-M), Preimplantation testing for structural rearrangements (PGT-SR) and Sex selection "]
["City Fertility Centre",17,47,15,14,14,10,5,{"v":35.714285714285715,"d":"36"}]
["Genea",2,14,2,2,2,0,0,0]
["Melbourne IVF, all sites including Reproductive services   ",131,849,336,133,188,99,78,{"v":41.48936170212766,"d":"41"}]
["Monash IVF",54,232,91,51,69,36,33,{"v":47.82608695652174,"d":"48"}]
["Newlife IVF",21,139,30,11,15,8,7,{"v":46.666666666666664,"d":"47"}]
["Number 1 Fertility",43,266,117,28,35,23,18,{"v":51.42857142857142,"d":"51"}]
["Aggregated total",268,{"v":1547,"d":"1,547"},591,239,323,176,141,{"v":43.653250773993804,"d":"44"}]
["PGT-M: preimplantation genetic testing for single gene disorders, PGT-SR: preimplantation genetic testing for structural rearrangements"]
["Registered ART provider (all sites)","No. of women who had embryos tested","No. of embryos\ntested*","No. of embryos deemed euploid after PGT-A","No. of embryos deemed mosaic after PGT-A","No of embryos deemed inconclusive or no result after PGT-A","No. of women who had an embryo transer**","No. of PGT-A tested \nembryos transferred ","No. of clinical pregnancies","No. of live births","% of live births per embryo transfer following PGT-A"]
["Preimplantation genetic testing for aneuploidy (incorrect chromosomal numbers, PGT-A)"]
["Ballarat IVF ****","NA","NA","NA","NA","NA",1,3,1,0,0]
["City Fertility Centre",55,184,78,45,8,34,45,20,14,{"v":31.11111111111111,"d":"31"}]
["Genea",39,144,72,11,0,40,62,21,18,{"v":29.03225806451613,"d":"29"}]
["Melbourne IVF, all sites including Reproductive services   ",608,{"v":2401,"d":"2,401"},976,140,110,434,608,257,206,{"v":33.881578947368425,"d":"34"}]
["Monash IVF",571,{"v":1719,"d":"1,719"},925,124,133,400,504,240,219,{"v":43.452380952380956,"d":"43"}]
["Newlife IVF",218,873,366,164,35,124,166,83,75,{"v":45.18072289156627,"d":"45"}]
["Number 1 Fertility",577,{"v":2016,"d":"2,016"},882,353,43,415,513,252,220,{"v":42.8849902534113,"d":"43"}]
["Aggregated total",{"v":2068,"d":"2,068"},{"v":7337,"d":"7,337"},{"v":3299,"d":"3,299"},837,329,{"v":1448,"d":"1,448"},{"v":1901,"d":"1,901"},874,752,{"v":39.558127301420306,"d":"40"}]
["PGT-A: preimplantation genetic screening for aneuploidy"]
["Registered ART provider (all sites)","No. of women who had embryos tested","No. of embryos\ntested*","No. of embryos deemed suitable\nfor transfer","No. of women who had an embryo tranfser**","No. of embryos transferred following PGT","No. of clinical pregnancies","No. of live births","% of live births per embryo transfer following PGT"]
["Non-invasive preimplantation genetic testing for aneuploidy (NIPGT)***"]
["Monash IVF",105,227,53,103,124,56,44,{"v":35.483870967741936,"d":"35"}]
["Aggregated total",105,227,53,103,124,56,44,{"v":35.483870967741936,"d":"35"}]
["NIPGT: non-invasive preimplantation genetic testing for aneuploidy"]
["* Either fresh embryos or thawed frozen embryos may be tested. Some patients will have some fresh and thawed frozen embryos tested."]
["** Women may have treatment using embryos tested and stored in a prior year "]
["*** Non-invasive PGT-A. Note that some women will have some embryos biopsied using standard PGT-A and some tested by NIPGT."]
["****Some clinics that do not undertake PGT, may receive embryos transported from another clinic with PGT information"]

{"sheet":"Section 2","index":3,"n_rows":248,"n_cols":13,"rows_kept":248,"merged":[[7,0,8,0],[7,1,7,4],[7,5,8,5],[7,6,8,6],[7,7,8,7],[7,8,8,8],[7,9,8,9],[7,10,8,10],[7,11,8,11],[7,12,8,12],[19,0,19,9],[27,0,27,7],[37,0,37,7],[47,0,47,7],[57,0,57,7],[75,1,75,5],[85,1,85,5],[96,1,96,5],[106,1,106,5],[119,0,119,5],[121,1,121,5],[129,1,129,5],[134,0,134,5],[136,1,136,5],[141,1,141,5],[152,0,152,4],[154,1,154,4],[163,1,163,4],[168,0,168,4],[170,1,170,4],[176,1,176,4],[193,1,193,3],[203,1,203,3],[230,1,230,4],[240,1,240,4]]}
["SECTION 2"]
["ART procedures, 2021-22 financial year"]
["This section provides details of ART treatment and clinical pregnancies for the 2020-21 financial year.  As pregnancies are ongoing, some outcomes are not known at the time of this report going to print."]
[]
["Overview "]
[]
["Table 2.1 Number of women treated, Victoria, 2021-22 financial year"]
["Treatment site","No. of women treated",{"$nulls":3},"No. of cycles included","No. of women with FSH stimulation","No. of women with egg retrievals","No. of women with fresh/thawed eggs and attempted IVF/ICSI fertilisation ","No. of women with embryos thawed","No. of women with fresh/thawed embryos transferred","No. of women with AI using partner sperm","No. of women with AI using donor sperm"]
[null,"< 35","35-39","≥ 40","All"]
["Adora Fertility, Greensborough     ",391,397,207,995,1790,793,721,687,388,766,60,0]
["Ballarat IVF, Wendouree            ",231,150,75,456,965,313,309,264,278,307,30,15]
["City Babies, Richmond              ",64,33,22,119,231,113,0,0,0,0,119,0]
["City Fertility Centre, all sites",558,509,280,1347,2517,946,891,783,577,783,63,149]
["Genea, Melbourne                   ",93,78,57,228,433,176,173,128,93,136,12,6]
["Melbourne IVF, all sites including RWH                  ",2140,2362,1328,5830,10501,4340,4160,3374,2522,3789,236,135]
["Monash IVF, all sites          ",1602,1588,1171,4361,7090,3111,2723,2187,1884,2605,235,85]
["Newlife IVF, Box Hill              ",411,438,227,1076,2204,897,851,682,464,671,37,37]
["Number 1 Fertility, East Melbourne ",828,1085,646,2559,5164,2106,1889,1334,946,1325,252,3]
["Aggregated total",6318,6640,4013,16971,30895,12795,11717,9439,7152,10382,1044,430]
["FSH: Follicle stimulating hormone. IVF: in vitro fertilisation. ICSI: intracytoplasmic sperm injection. AI: artificial insemination."]
["A small number of cycles (<1%) were not received by the submission deadline."]
[]
[]
["Egg retrieval cycles"]
[]
["Table 2.2 Number of egg retrieval cycles,  Victoria, 2021-22 financial year"]
["Treatment site","No. of egg retrieval cycles","No. of egg retrievals with eggs collected","No. of eggs collected ","Average No. eggs collected per egg retrieval cycle","No. of cycles with eggs  frozen","No. of eggs  frozen","Average No. of eggs frozen per cycle with eggs frozen"]
["< 35"]
["Adora Fertility, Greensborough     ",367,364,3883,{"$f":"SUM(D29/B29)","v":{"v":10.580381471389646,"d":"11"}},10,80,{"$f":"SUM(G29/F29)","v":8}]
["Ballarat IVF, Wendouree            ",193,193,2500,{"$f":"SUM(D30/B30)","v":{"v":12.953367875647668,"d":"13"}},36,361,{"$f":"SUM(G30/F30)","v":{"v":10.027777777777779,"d":"10"}}]
["City Fertility Centre, all sites",403,401,5313,{"v":13.183622828784118,"d":"13"},40,360,9]
["Genea, Melbourne                   ",85,84,922,{"v":10.847058823529412,"d":"11"},22,183,{"v":8.318181818181818,"d":"8"}]
["Melbourne IVF, all sites including RWH      ",1899,1888,25951,{"v":13.665613480779358,"d":"14"},452,5436,{"v":12.026548672566372,"d":"12"}]
["Monash IVF, all sites             ",1162,1159,14887,{"v":12.811531841652323,"d":"13"},294,2791,{"v":9.493197278911564,"d":"9"}]
["Newlife IVF, Box Hill              ",401,400,5600,{"v":13.965087281795512,"d":"14"},90,898,{"v":9.977777777777778,"d":"10"}]
["Number 1 Fertility, East Melbourne ",882,873,12442,{"v":14.106575963718821,"d":"14"},330,3395,{"v":10.287878787878787,"d":"10"}]
["Aggregated total",5392,5362,71498,13,1274,13504,11]
["35-39"]
["Adora Fertility, Greensborough     ",382,370,3101,{"$f":"SUM(D39/B39)","v":{"v":8.11780104712042,"d":"8"}},10,85,{"$f":"SUM(G39/F39)","v":{"v":8.5,"d":"9"}}]
["Ballarat IVF, Wendouree            ",164,158,1542,{"$f":"SUM(D40/B40)","v":{"v":9.402439024390244,"d":"9"}},28,303,{"$f":"SUM(G40/F40)","v":{"v":10.821428571428571,"d":"11"}}]
["City Fertility Centre, all sites",451,445,4559,{"v":10.108647450110865,"d":"10"},31,325,{"v":10.483870967741936,"d":"10"}]
["Genea, Melbourne                   ",78,77,771,{"v":9.884615384615385,"d":"10"},18,150,{"v":8.333333333333334,"d":"8"}]
["Melbourne IVF, all sites including RWH          ",2236,2199,23123,{"v":10.341234347048301,"d":"10"},460,4126,{"v":8.969565217391304,"d":"9"}]
["Monash IVF, all sites       ",1214,1205,12778,{"v":10.525535420098846,"d":"11"},275,2427,{"v":8.825454545454546,"d":"9"}]
["Newlife IVF, Box Hill              ",544,541,6287,{"v":11.556985294117647,"d":"12"},102,1039,{"v":10.186274509803921,"d":"10"}]
["Number 1 Fertility, East Melbourne ",1324,1312,15094,{"v":11.400302114803626,"d":"11"},511,4409,{"v":8.628180039138943,"d":"9"}]
["Aggregated total",6393,6307,67255,{"v":10.52010010949476,"d":"11"},1435,12864,{"v":8.96445993031359,"d":"9"}]
["≥ 40"]
["Adora Fertility, Greensborough     ",252,243,1606,{"$f":"SUM(D49/B49)","v":{"v":6.373015873015873,"d":"6"}},3,11,{"$f":"SUM(G49/F49)","v":{"v":3.6666666666666665,"d":"4"}}]
["Ballarat IVF, Wendouree            ",87,82,570,{"$f":"SUM(D50/B50)","v":{"v":6.551724137931035,"d":"7"}},2,7,{"$f":"SUM(G50/F50)","v":{"v":3.5,"d":"4"}}]
["City Fertility Centre, all sites",278,260,1834,{"v":6.597122302158273,"d":"7"},7,35,5]
["Genea, Melbourne                   ",81,79,472,{"v":5.827160493827161,"d":"6"},12,60,5]
["Melbourne IVF, all sites including RWH                 ",1433,1360,10093,{"v":7.043265875785067,"d":"7"},75,531,{"v":7.08,"d":"7"}]
["Monash IVF, all sites         ",1015,979,7260,{"v":7.152709359605911,"d":"7"},102,583,{"v":5.715686274509804,"d":"6"}]
["Newlife IVF, Box Hill              ",313,311,2856,{"v":9.124600638977636,"d":"9"},23,170,{"v":7.391304347826087,"d":"7"}]
["Number 1 Fertility, East Melbourne ",726,710,6304,{"v":8.683195592286502,"d":"9"},107,695,{"v":6.4953271028037385,"d":"6"}]
["Aggregated total",4193,4024,30995,{"v":7.392082041497734,"d":"7"},331,2092,{"v":6.3202416918429005,"d":"6"}]
["All"]
["Adora Fertility, Greensborough     ",1001,977,8590,{"$f":"SUM(D59/B59)","v":{"v":8.581418581418582,"d":"9"}},23,176,{"$f":"SUM(G59/F59)","v":{"v":7.6521739130434785,"d":"8"}}]
["Ballarat IVF, Wendouree            ",444,433,4612,{"$f":"SUM(D60/B60)","v":{"v":10.387387387387387,"d":"10"}},66,671,{"$f":"SUM(G60/F60)","v":{"v":10.166666666666666,"d":"10"}}]
["City Fertility Centre, all sites",1132,1106,11706,{"v":10.340989399293287,"d":"10"},78,720,{"v":9.23076923076923,"d":"9"}]
["Genea, Melbourne                   ",244,240,2165,{"v":8.87295081967213,"d":"9"},52,393,{"v":7.5576923076923075,"d":"8"}]
["Melbourne IVF, all sites including RWH             ",5568,5447,59167,{"v":10.626257183908047,"d":"11"},987,10093,{"v":10.225937183383992,"d":"10"}]
["Monash IVF, all sites         ",3399,3343,34925,{"v":10.275080906148867,"d":"10"},671,5801,{"v":8.645305514157974,"d":"9"}]
["Newlife IVF, Box Hill              ",1258,1252,14743,{"v":11.71939586645469,"d":"12"},215,2107,{"v":9.8,"d":"10"}]
["Number 1 Fertility, East Melbourne ",2932,2895,33840,{"v":11.541609822646658,"d":"12"},948,8499,{"v":8.965189873417721,"d":"9"}]
["Aggregated total",15978,15693,169748,{"v":10.623857804481162,"d":"11"},3040,28460,{"v":9.361842105263158,"d":"9"}]
[]
[]
["Use of eggs"]
[]
["Table 2.3 Number of ART cycles using fresh eggs,  Victoria, 2021-22 financial year"]
[]
["Table 2.3a Attempted fertilisation,  Victoria, 2021-22 financial year"]
[null,"No. of cycles with attempted fertilisation","% of cycles involving eggs treated with ICSI**","No. of  \ncycles with embryos formed*","No. of embryos formed","Average no. of embryos formed per cycle"]
["Treatment site","All ages by Treatment site"]
["Adora Fertility, Greensborough     ",936,{"v":54.594017028808594,"d":"54.6"},898,4839,{"$f":"SUM(E77/B77)","v":{"v":5.169871794871795,"d":"5"}}]
["Ballarat IVF, Wendouree            ",363,{"v":52.61708068847656,"d":"52.6"},347,2324,{"$f":"SUM(E78/B78)","v":{"v":6.402203856749312,"d":"6"}}]
["City Fertility Centre, all sites",985,72.4,928,5613,{"v":5.698477157360406,"d":"6"}]
["Genea, Melbourne                   ",182,{"v":52.19780349731445,"d":"52.2"},176,931,{"v":5.115384615384615,"d":"5"}]
["Melbourne IVF, all sites including RWH          ",4361,70.4,4058,24261,{"v":5.563173584040357,"d":"6"}]
["Monash IVF, all sites             ",2575,79.5,346,14300,{"v":5.553398058252427,"d":"6"}]
["Newlife IVF, Box Hill              ",990,{"v":86.06060791015625,"d":"86.1"},925,5622,{"v":5.678787878787879,"d":"6"}]
["Number 1 Fertility, East Melbourne ",1865,{"v":88.95442199707031,"d":"89.0"},1626,8513,{"v":4.56461126005362,"d":"5"}]
["Aggregated total",12257,{"v":74.55331420898438,"d":"74.6"},11378,66403,{"v":5.417557314187811,"d":"5"}]
["Age group","All Treatment sites by age group"]
["<35",3968,{"v":73.58870697021484,"d":"73.6"},3804,27747,{"$f":"SUM(E87/B87)","v":{"v":6.992691532258065,"d":"7"}}]
["35-39",4683,{"v":75.7420425415039,"d":"75.7"},4357,24887,{"$f":"SUM(E88/B88)","v":{"v":5.31432842195174,"d":"5"}}]
[">=40",3606,{"v":74.07099151611328,"d":"74.1"},3217,13769,{"v":3.8183582917359957,"d":"4"}]
["Aggregated total",{"$f":"SUM(B87:B89)","v":12257},{"v":74.55331420898438,"d":"74.6"},{"$f":"SUM(D87:D89)","v":11378},66403,{"v":5.417557314187811,"d":"5"}]
["ICSI: intracytoplasmic sperm injection. "]
["* Fertilised eggs with two pronuclei "]
[]
[]
["Table 2.3b Number of ART cycles using fresh embryos after IVF/ICSI, Victoria,  2021-22 financial year"]
[null,"No. of  \ncycles with embryos formed**","No. of cycles  with fresh embryos  transferred","No. of cycles with embryos frozen*","No. of cycles with ALL embryos frozen* ","% of cycles with ALL embryos frozen "]
["Treatment site","All ages by Treatment site"]
["Adora Fertility, Greensborough     ",898,623,369,137,{"$f":"SUM(E98/B98)*100","v":{"v":15.256124721603564,"d":"15.3"}}]
["Ballarat IVF, Wendouree            ",347,59,278,232,{"v":66.85878962536023,"d":"66.9"}]
["City Fertility Centre, all sites",928,384,588,382,{"v":41.16379310344828,"d":"41.2"}]
["Genea, Melbourne                   ",176,107,94,48,{"v":27.27272727272727,"d":"27.3"}]
["Melbourne IVF, all sites including RWH    ",4058,2346,2625,1292,{"v":31.838344011828486,"d":"31.8"}]
["Monash IVF, all sites          ",2420,1097,1653,1053,{"v":43.51239669421488,"d":"43.5"}]
["Newlife IVF, Box Hill              ",925,362,673,463,{"v":50.054054054054056,"d":"50.1"}]
["Number 1 Fertility, East Melbourne ",1626,704,1231,817,{"v":50.2460024600246,"d":"50.2"}]
["Aggregated total",11378,5682,7511,4424,{"v":38.88205308490068,"d":"38.9"}]
["Age group","All Treatment sites by age group"]
["<35",3804,1903,2855,1574,{"$f":"SUM(E108/B108)*100","v":{"v":41.37749737118822,"d":"41.4"}}]
["35-39",4357,2101,2936,1774,{"$f":"SUM(E109/B109)*100","v":{"v":40.71608905210007,"d":"40.7"}}]
[">=40",3217,1678,1720,1076,{"v":33.44731115946534,"d":"33.4"}]
["Aggregated total",{"$f":"SUM(B108:B110)","v":11378},5682,7511,4424,{"v":38.88205308490068,"d":"38.9"}]
["* Embryos frozen may need to be suitable - i.e. of good quality and meeting freezing criteria."]
["* * Fertilised eggs with two pronuclei "]
[]
[]
[]
["Table 2.4 Number of ART cycles using thawed eggs,  Victoria, 2021-22 financial year"]
["Table 2.4 reports cycles using thawed eggs during the 2021-22 financial year. Tables 2.4a and 2.4b show data for attempted fertilisation with thawed eggs\nand the use of embryos created from thawed eggs respectively."]
["Table 2.4a Attempted fertilisation, Victoria, 2021-22 financial year***"]
["Women using own eggs"]
[null,"No. of cycles with attempted fertilisation","No. of  \ncycles with embryos formed**","% of cycles with embryos formed from attempted fertilisation ","No. of embryos formed","Average no. of embryos formed per cycle"]
["Treatment site","All ages by Treatment site"]
["City Fertility Centre, Melbourne   ",6,6,{"$f":"SUM(C123/B123)*100","v":{"v":100,"d":"100.0"}},33,{"$f":"SUM(E123/B123)","v":{"v":5.5,"d":"6"}}]
["Genea, Melbourne                   ",2,2,{"$f":"SUM(C124/B124)*100","v":{"v":100,"d":"100.0"}},24,{"$f":"SUM(E124/B124)","v":12}]
["Melbourne IVF, all sites including RWH            ",114,112,{"v":98.24561403508771,"d":"98.2"},743,{"$f":"SUM(E125/B125)","v":{"v":6.517543859649122,"d":"7"}}]
["Monash IVF, all sites          ",46,45,{"$f":"SUM(C126/B126)*100","v":{"v":97.82608695652173,"d":"97.8"}},249,{"v":5.413043478260869,"d":"5"}]
["Newlife IVF, Box Hill              ",11,10,{"$f":"SUM(C127/B127)*100","v":{"v":90.9090909090909,"d":"90.9"}},42,{"$f":"SUM(E127/B127)","v":{"v":3.8181818181818183,"d":"4"}}]
["Number 1 Fertility, East Melbourne ",21,21,{"$f":"SUM(C128/B128)*100","v":{"v":100,"d":"100.0"}},144,{"v":6.857142857142857,"d":"7"}]
["Aggregated total",200,196,{"$f":"SUM(C129/B129)*100","v":{"v":98,"d":"98.0"}},1235,{"v":6.175,"d":"6"}]
["Age group","All Treatment sites by age group"]
["<35",30,30,{"$f":"SUM(C131/B131)*100","v":{"v":100,"d":"100.0"}},218,{"$f":"SUM(E131/B131)","v":{"v":7.266666666666667,"d":"7"}}]
["35-39",57,56,{"$f":"SUM(C132/B132)*100","v":{"v":98.24561403508771,"d":"98.2"}},379,{"$f":"SUM(E132/B132)","v":{"v":6.649122807017544,"d":"7"}}]
[">=40",113,110,{"v":97.34513274336283,"d":"97.3"},638,{"v":5.646017699115045,"d":"6"}]
["Aggregated total",200,196,{"v":98,"d":"98.0"},1235,{"v":6.175,"d":"6"}]
["Women using donor/partner eggs*"]
[null,"No. of cycles with attempted fertilisation","No. of  \ncycles with embryos formed*","% of cycles with embryos formed from attempted fertilisation ","No. of embryos formed","Average no. of embryos formed per cycle"]
["Treatment site","All ages by Treatment site"]
["Melbourne IVF, East Melbourne and RWH sites   ",25,24,{"$f":"SUM(C138/B138)*100","v":{"v":96,"d":"96.0"}},145,{"$f":"SUM(E138/B138)","v":{"v":5.8,"d":"6"}}]
["Monash IVF, Clayton, Geelong, Hawthorn and Sale sites                   ",76,76,{"$f":"SUM(C139/B139)*100","v":{"v":100,"d":"100.0"}},360,{"v":4.7368421052631575,"d":"5"}]
["Number 1 Fertility, East Melbourne ",76,75,{"v":98.68421052631578,"d":"98.7"},475,{"v":6.25,"d":"6"}]
["Aggregated total",177,175,{"v":98.87005649717514,"d":"98.9"},980,{"v":5.536723163841808,"d":"6"}]
["Age group","All Treatment sites by age group"]
["<35",7,7,{"$f":"SUM(C143/B143)*100","v":{"v":100,"d":"100.0"}},30,{"v":4.285714285714286,"d":"4"}]
["35-39",22,22,{"$f":"SUM(C144/B144)*100","v":{"v":100,"d":"100.0"}},121,{"v":5.5,"d":"6"}]
[">=40",148,146,{"v":98.64864864864865,"d":"98.6"},829,{"v":5.601351351351352,"d":"6"}]
["Aggregated total",177,175,{"v":98.87005649717514,"d":"98.9"},980,{"v":5.536723163841808,"d":"6"}]
["* Donor eggs include those imported from interstate or overseas."]
["** Fertilised eggs with two pronuclei "]
["*** Does not include lab-only cycles"]
[]
[]
["Table 2.4b Number of ART cycles using thawed eggs, Victoria, 2021-22 financial year"]
["Women using own eggs"]
[null,"No. of cycles  with embryos  transferred","No. of cycles with embryos frozen**","No. of cycles with ALL embryos frozen*** ","No.\nof embryos\nfrozen**"]
["Treatment site","All ages by Treatment site"]
["Ballarat IVF, Wendouree            ",0,1,1,1]
["City Fertility Centre, all sites",5,10,8,35]
["Genea, Melbourne                   ",2,3,1,11]
["Melbourne IVF, all sites including RWH          ",104,77,15,226]
["Monash IVF, all sites  ",35,43,27,98]
["Newlife IVF, Box Hill              ",10,13,8,31]
["Number 1 Fertility, East Melbourne ",18,24,9,86]
["Aggregated total",174,171,69,487]
["Age group","All Treatment sites by age group"]
["<35",27,34,17,137]
["35-39",49,57,25,172]
[">=40",98,80,27,178]
["Aggregated Total",174,171,69,487]
["Women using donor/partner eggs*"]
[null,"No. of cycles  with embryos  transferred","No. of cycles with embryos frozen**","No. of cycles with ALL embryos frozen***","No.\nof embryos\nfrozen**"]
["Treatment site","All ages by Treatment site"]
["Melbourne IVF, East Melbourne and RWH sites     ",22,17,2,49]
["Monash IVF, Clayton, Geelong, Hawthorn and Sale sites              ",58,56,10,111]
["Newlife IVF, Box Hill",0,1,1,1]
["Number 1 Fertility, East Melbourne ",73,59,0,147]
["Aggregated total",{"$f":"SUM(B172:B175)","v":153},{"$f":"SUM(C172:C175)","v":133},{"$f":"SUM(D172:D175)","v":13},{"$f":"SUM(E172:E175)","v":308}]
["Age group","All Treatment sites by age group"]
["<35",6,2,0,4]
["35-39",19,15,1,36]
[">=40",128,116,12,268]
["Aggregated Total",{"$f":"SUM(B178:B180)","v":153},{"$f":"SUM(C178:C180)","v":133},13,308]
["* Donor eggs include those imported from interstate or overseas."]
["** Embryos frozen may need to be suitable - i.e. of good quality and meeting freezing criteria."]
["*** Constitutes a lab-only cycle where eggs are thawed, fertilised and all resulting embryos are frozen. "]
[]
[]
["Disclaimer\nPlease note, the data in tables 2.5, 2.6, 2.7, 3.1, 3.2 and 4.1 cannot be used to compare success rates between\ntreatment sites as clinics provided their clinical pregnancy data during set times in July 2022. Some data may\nbe incomplete as treatment has been included up until 30 June 2022 and ultrasound scans confirming clinical\npregnancies may have not been completed before data was submitted. Birth outcomes following treatment\nin the 2021-22 financial year will be included in next year’s annual report due to the time it takes to track pregnancies and births outcomes."]
[]
["Use of embryos"]
[]
["Table 2.5 Number of ART cycles with fresh embryo transferred, Victoria, 2021-22 financial year*"]
["Figures do not include alll clinical pregnancies, only those with ultrasound scan available before the date on page x"]
[null,"No. of cycles with embryos transferred","No. of clinical pregnancies","% clinical pregnancies per embryo transfer cycle"]
["Treatment site","All ages by Treatment site"]
["Adora Fertility, Greensborough     ",623,132,{"v":21.187801361083984,"d":"21.2"}]
["Ballarat IVF, Wendouree            ",59,16,{"v":27.11864471435547,"d":"27.1"}]
["City Fertility Centre, all sites",384,97,{"$f":"SUM(C197/B197)*100","v":{"v":25.260416666666668,"d":"25.3"}}]
["Genea, Melbourne                   ",107,18,{"v":16.822429656982422,"d":"16.8"}]
["Melbourne IVF, all sites including RWH                   ",2346,780,{"$f":"SUM(C199/B199)*100","v":{"v":33.248081841432224,"d":"33.2"}}]
["Monash IVF, all sites       ",1098,366,{"$f":"SUM(C200/B200)*100","v":{"v":33.33333333333333,"d":"33.3"}}]
["Newlife IVF, Box Hill              ",369,120,{"v":32.52032470703125,"d":"32.5"}]
["Number 1 Fertility, East Melbourne ",704,225,{"v":31.960227966308594,"d":"32.0"}]
[null,5690,1754,{"v":30.82600975036621,"d":"30.8"}]
["Age group","All Treatment sites by age group"]
["<35",1908,787,{"v":41.247379302978516,"d":"41.2"}]
["35-39",2103,642,{"v":30.527816772460938,"d":"30.5"}]
[">=40",1679,325,{"v":19.356760025024414,"d":"19.4"}]
["Aggregated Total",5690,1754,{"v":30.82600975036621,"d":"30.8"}]
["* includes recipient cycles where fresh embryos are recived and transferred"]
[]
[]
["Table 2.6 Number of ART cycles with fresh embryo formed from thawed eggs,  Victoria, 2021-22 financial year"]
["Figures do not include alll clinical pregnancies, only those with ultrasound scan available before the date on page x"]
["Treatment site","No. of cycles with embryos transferred**","No. of clinical pregnancies*","% clinical pregnancies per embryo transfer cycle"]
["Adora Fertility, Greensborough     ",1,0,{"v":0,"d":"0.0"}]
["City Fertility Centre, Melbourne and Bundoora sites",8,1,{"$f":"SUM(C216/B216)*100","v":12.5}]
["Genea, Melbourne                   ",2,0,{"v":0,"d":"0.0"}]
["Melbourne IVF, all sites including RWH                  ",138,54,{"$f":"SUM(C218/B218)*100","v":{"v":39.130434782608695,"d":"39.1"}}]
["Monash IVF, Clayton, Geelong, Hawthorn, Sale and Sunshine sites    ",101,37,{"$f":"SUM(C219/B219)*100","v":{"v":36.633663366336634,"d":"36.6"}}]
["Newlife IVF, Box Hill              ",15,5,{"v":33.33333206176758,"d":"33.3"}]
["Number 1 Fertility, East Melbourne ",105,37,{"v":35.238094329833984,"d":"35.2"}]
["Aggregated total",{"$f":"SUM(B215:B221)","v":370},{"$f":"SUM(C215:C221)","v":134},{"v":36.21621704101563,"d":"36.2"}]
["* see note page x"]
["** Includes cycles using fresh eggs and thawed eggs"]
["The single embryo transfer rate among all clinics was 96.5%\nClinical pregnancy rate per embryo transfer cycle among all clinics was 36.2%"]
[]
[]
["Table 2.7 Number of ART cycles with embryo thawed,  Victoria, 2021-22 financial year"]
["Figures do not include alll clinical pregnancies, only those with ultrasound scan available before the date on page x"]
[null,"No. of cycles with embryos thawed","No. of cycles with embryos transferred","No. of clinical pregnancies*","% clinical pregnancies per embryo transfer cycle"]
["Treatment site","All ages by Treatment site"]
["Adora Fertility, Greensborough     ",562,539,156,{"v":28.942485809326172,"d":"28.9"}]
["Ballarat IVF, Wendouree            ",438,435,152,{"v":34.942527770996094,"d":"34.9"}]
["City Fertility Centre, Notting Hill",835,811,282,{"$f":"SUM(D234/C234)*100","v":{"v":34.77188655980271,"d":"34.8"}}]
["Genea, Melbourne                   ",140,140,37,{"v":26.428571701049805,"d":"26.4"}]
["Melbourne IVF, all sites including RWH                 ",3727,3660,1312,{"$f":"SUM(D236/C236)*100","v":{"v":35.84699453551913,"d":"35.8"}}]
["Monash IVF, Sunshine               ",2496,2473,1003,{"$f":"SUM(D237/C237)*100","v":{"v":40.558026688232914,"d":"40.6"}}]
["Newlife IVF, Box Hill              ",668,655,280,{"v":42.74809265136719,"d":"42.7"}]
["Number 1 Fertility, East Melbourne ",1326,1323,505,{"v":38.17082214355469,"d":"38.2"}]
["Aggregated total",10192,10036,3727,{"v":37.13631057739258,"d":"37.1"}]
["Age group","All Treatment sites by age group"]
["<35",3773,3732,1597,{"v":42.79206848144531,"d":"42.8"}]
["35-39",4070,4007,1483,{"v":37.010231018066406,"d":"37.0"}]
[">=40",2349,2297,647,{"v":28.16717529296875,"d":"28.2"}]
["Aggregated Total",10192,10036,3727,{"v":37.13631057739258,"d":"37.1"}]
[]
[]
["There was 1 GIFT/ZIFT cycle in FY2022"]

{"sheet":"Section 3 - AI","index":4,"n_rows":36,"n_cols":4,"rows_kept":36,"merged":[[2,4,2,8],[6,0,6,3],[23,0,23,3]]}
["SECTION 3"]
["Artificial insemination (AI), 2021-22 financial year"]
["This section provides detail of AI treatment and clinical pregnancies for the 2020-21 financial year."]
["This data only includes AI insemination at registered ART providers and does not include AI at private doctor's facilities."]
[]
["Table 3.1 AI with partner sperm for stimulated/unstimulated cycles, Victoria, 2021-22 financial year"]
["All ages"]
["Treatment site","No. of cycles with AI performed","No. of clinical pregnancies*","% clinical pregnancies per AI cycle"]
["Adora Fertility, Greensborough     ",90,10,{"$f":"SUM(C9/B9)*100","v":{"v":11.11111111111111,"d":"11.1"}}]
["Ballarat IVF, Wendouree            ",46,4,{"$f":"SUM(C10/B10)*100","v":{"v":8.695652173913043,"d":"8.7"}}]
["City Babies, Richmond              ",231,33,{"v":14.285714285714285,"d":"14.3"}]
["City Fertility Centre, all sites",82,8,{"v":9.75609756097561,"d":"9.8"}]
["Genea, Melbourne                   ",14,3,{"v":21.428571428571427,"d":"21.4"}]
["Melbourne IVF, all sites including RWH                    ",331,33,{"v":9.969788519637463,"d":"10.0"}]
["Monash IVF, Bendigo, Clayton, Geelong, Hawthorn, Mildura and Sunshine sites               ",359,44,{"v":12.256267409470752,"d":"12.3"}]
["Newlife IVF, Box Hill              ",61,1,{"v":1.639344262295082,"d":"1.6"}]
["Number 1 Fertility, East Melbourne ",342,22,{"v":6.432748538011696,"d":"6.4"}]
["Aggregated total",{"$f":"SUM(B9:B17)","v":1556},{"$f":"SUM(C9:C17)","v":158},{"v":10.154241645244216,"d":"10.2"}]
["AI: artificial insemination."]
["* Number of clinical pregnancies only included those reported by the date on page x. "]
["This table contains preliminary data. Not all pregnancy outcomes are known at the time of this report going to print."]
[]
["Table 3.2 AI with donor sperm for stimulated/unstimulated cycles, Victoria, 2021-22 financial year"]
["All ages"]
["Treatment site","No. of cycles with AI performed","No. of clinical pregnancies*","% clinical pregnancies per AI cycle"]
["Ballarat IVF, Wendouree            ",22,3,{"$f":"SUM(C26/B26)*100","v":{"v":13.636363636363635,"d":"13.6"}}]
["City Fertility Centre, all sites",238,20,{"$f":"SUM(C27/B27)*100","v":{"v":8.403361344537815,"d":"8.4"}}]
["Genea, Melbourne                   ",10,0,{"v":0,"d":"0.0"}]
["Melbourne IVF, all sites including RWH                 ",224,25,{"v":11.160714285714286,"d":"11.2"}]
["Monash IVF, Bendigo, Clayton, Geelong, Hawthorn and Mildura sites                ",131,27,{"v":20.610687022900763,"d":"20.6"}]
["Newlife IVF, Box Hill              ",61,2,{"v":3.278688524590164,"d":"3.3"}]
["Number 1 Fertility, East Melbourne ",4,0,{"v":0,"d":"0.0"}]
["Aggregated total",{"$f":"SUM(B26:B32)","v":690},{"$f":"SUM(C26:C32)","v":77},{"v":11.159420289855072,"d":"11.2"}]
["AI: artificial insemination."]
["* Number of clinical pregnancies only included those reported by the date on page x. "]
["This table contains preliminary data. Not all pregnancy outcomes are known at the time of this report going to print."]

{"sheet":"Section 4 Donor","index":5,"n_rows":80,"n_cols":9,"rows_kept":80,"merged":[[15,0,15,3],[20,0,22,0],[20,1,20,3],[20,4,20,6],[20,7,20,8],[21,1,22,1],[21,2,22,2],[21,3,22,3],[21,4,22,4],[21,5,22,5],[21,6,22,6],[21,7,22,7],[21,8,22,8],[35,0,37,0],[35,1,35,3],[35,4,35,6],[36,1,37,1],[36,2,37,2],[36,4,37,4],[36,5,37,5],[38,0,38,6],[47,0,47,6],[57,0,58,0],[57,1,57,4],[70,0,71,0],[70,1,70,4]]}
["SECTION 4"]
["Donor ART treatment, 2021-22 financial year"]
["For use of AI, refer to section 3. For storage of donor sperm, refer to section 7"]
[]
["Table 4.1 Number of recipients and clinical pregnancies by donation type, Victoria, 2021-22 financial year"]
["This table includes cycles where embryo(s) was transferred. Figures do not include all clinical pregnancies, only those with ultrasound scan available before date on page x."]
["Donation type (all treatment sites)","No. of recipients\ntreated","No. of cycles with embryos transferred","No. of clinical\npregnancies*","% clinical\npregnancies per embryo transfer cycle"]
["Donor embryo",143,191,75,{"v":39.26701736450195,"d":"39.3"}]
["Donor/partner eggs"]
[" --- Fresh egg",212,66,31,{"v":46.969696044921875,"d":"47.0"}]
[" --- Thawed egg",182,152,54,{"v":35.52631759643555,"d":"35.5"}]
[" --- Embryos from donated eggs",340,436,156,{"v":35.779815673828125,"d":"35.8"}]
["Donor sperm**",1658,1980,734,37.1]
["Aggregated total***",{"$f":"SUM(B8:B13)","v":2535},{"$f":"SUM(C8:C13)","v":2825},1050,{"$f":"IF(C14=0,0,(D14/C14)*100)","v":{"v":37.16814159292036,"d":"37.2"}}]
["* Number of clinical pregnancies only included those reported by the date on page x. "]
["** includes cycles where a woman's own eggs or donated eggs were used"]
["*** Excluded AI using donor sperm. Refer to table 3.2. Some recipients had both donated eggs and sperm."]
[]
["Table 4.2 Number of egg, sperm and embryo donors used in treatment by method of recruitment, 2021-22 financial year*"]
[]
["Registered ART provider (all sites)","No. egg donors",null,null,"No. sperm donors",null,null,"No. embryo donors"]
[null,"Recipient recruited","Overseas egg bank recruited","Clinic recruited","Recipient recruited","Overseas sperm bank recruited","Clinic recruited","Recipient recruited","Clinic recruited"]
[]
["Ballarat IVF",17,0,3,6,0,26,4,2]
["City Fertility Centre, all sites",48,0,2,44,0,50,8,0]
["Genea",6,0,0,1,6,1,0,0]
["Melbourne IVF, all sites including RWH",62,0,8,68,4,96,37,28]
["Monash IVF, all sites",133,56,4,49,14,155,16,10]
["Newlife IVF",27,0,0,26,5,29,1,0]
["Number 1 Fertility",37,66,0,25,0,6,0,0]
["Aggregated total",330,122,17,219,29,363,66,40]
["*  Donors may include commissioning couples or individuals \nentering into surrogacy arrangements"]
[]
["Table 4.3 Number of recipients and treatment cycles with donor/partner eggs, 2021-22 financial year"]
[]
["Registered ART provider (all sites)","No. of recipients who had treatment with donor/partner eggs",null,null,"No. of cycles using donor/partner eggs"]
[null,"Recipient recruited","Overseas egg bank recruited","Clinic","Recipient recruited","Overseas egg bank recruited","Clinic"]
[{"$nulls":3},"recruited",null,null,"recruited"]
["FRESH EGGS"]
["Ballarat IVF",17,null,4,35,null,6]
["City Fertility Centre, all sites",42,null,14,67,null,24]
["Genea",8,null,0,9,null,0]
["Melbourne IVF, all sites including RWH",102,null,0,148,null,0]
["Monash IVF, all sites",90,null,3,96,null,3]
["Newlife IVF",40,null,0,95,null,0]
["Number 1 Fertility",21,null,0,25,null,0]
["Aggregated total",320,null,21,475,null,33]
["THAWED EGGS"]
["City Fertility Centre, all sites",0,0,1,0,0,1]
["Melbourne IVF, all sites including RWH",8,0,9,6,0,9]
["Monash IVF, all sites",5,69,0,6,74,0]
["Newlife IVF",1,0,0,0,0,0]
["Number 1 Fertility",25,80,0,38,126,0]
["Aggregated total",39,149,10,50,200,10]
[]
["Table 4.4 Relationship status of recipients of donor sperm treatment, 2021-22 financial year"]
[]
["Registered ART provider (all sites)","Relationship status of woman receiving donor sperm treatment"]
[null,"Single","Same-sex","Heterosexual","Other"]
["Ballarat IVF",40,20,9,0]
["City Fertility Centre, all sites",72,93,15,0]
["Genea",5,5,0,0]
["Melbourne IVF, all sites including RWH",315,193,75,0]
["Monash IVF, all sites",288,145,71,0]
["Newlife IVF",59,62,12,0]
["Number 1 Fertility",25,13,6,0]
["Aggregated total",804,531,188,0]
[]
["Table 4.5 Relationship status of recipients of donor egg treatment, 2021-22 financial year"]
[]
["Registered ART provider (all sites)","Relationship status of woman receiving donor egg treatment"]
[null,"Single","Same-sex","Heterosexual","Other"]
["Ballarat IVF",2,0,19,0]
["City Fertility Centre, all sites",9,28,21,2]
["Genea",0,1,6,0]
["Melbourne IVF, all sites including RWH",13,20,62,4]
["Monash IVF, all sites",22,26,147,0]
["Newlife IVF",3,1,23,0]
["Number 1 Fertility",4,5,111,0]
["Aggregated total",53,81,389,6]

{"sheet":"Section 5 - Surrogacy","index":6,"n_rows":14,"n_cols":5,"rows_kept":14,"merged":[[12,0,12,4]]}
["SECTION 5"]
["Surrogacy, 2020-21 financial year"]
[]
["Table 5 Surrogacy cycles and clinical pregnancies, Victoria, 2021-22 financial year"]
["This table includes cycles where embryo(s) was transferred to a surrogate woman during the financial year. Figures do not include all clinical pregnancies, only those with ultrasound scan available before the date on page x."]
["Treatment site","No. of surrogate women","No. of cycles with\nembryos transferred","No. of clinical\npregnancies","% clinical\npregnancies per embryo transfer cycle"]
["City Fertility Centre, Melbourne   ",3,6,2,{"$f":"SUM(D7/C7)*100","v":{"v":33.33333333333333,"d":"33.3"}}]
["Melbourne IVF, East Melbourne      ",16,21,10,{"$f":"SUM(D8/C8)*100","v":{"v":47.61904761904761,"d":"47.6"}}]
["Monash IVF, Bendigo, Clayton and Hawthorn sites              ",12,16,6,37.5]
["Newlife IVF, Box Hill              ",3,3,2,{"v":66.66666666666666,"d":"66.7"}]
["Number 1 Fertility, East Melbourne ",11,16,8,{"v":50,"d":"50.0"}]
["Aggregated total",{"$f":"SUM(B7:B11)","v":45},{"$f":"SUM(C7:C11)","v":62},{"$f":"SUM(D7:D11)","v":28},{"v":45.16129032258064,"d":"45.2"}]
[]
["100% surrogacy cycles involving the transfer of an embryo were single embryo transfers"]

{"sheet":"Section 6 - Storage","index":7,"n_rows":72,"n_cols":10,"rows_kept":72,"merged":[[20,0,22,0],[20,1,20,3],[20,4,20,6],[20,7,20,9],[21,1,22,1],[21,2,22,2],[21,4,22,4],[21,5,22,5],[21,7,22,7],[21,8,22,8],[36,0,38,0],[36,1,36,3],[36,4,36,6],[36,7,36,9],[37,1,38,1],[37,2,38,2],[37,4,38,4],[37,5,38,5],[37,7,38,7],[37,8,38,8],[46,0,46,1],[47,0,47,3],[48,0,50,0],[48,1,48,2],[48,3,48,4],[48,5,48,6],[49,1,50,1],[49,3,50,3],[49,5,50,5],[49,7,50,7],[49,8,50,8],[49,9,50,9],[60,0,60,3],[62,0,63,0],[62,1,62,2],[62,3,62,4]]}
[]
["SECTION 6"]
["Storage of gametes, 2021-22 financial year"]
[]
["Table 6.1 Storage of sperm, ovarian tissue, eggs and embryos, 2021-22 financial year"]
["This table does not include donor gametes, donor embryos or embryos containing donor gametes"]
["Registered ART provider (all sites)","No. of patients with their own sperm in storage as of 30 June 2022","No. of patients with their own ovarian tissue in storage as of 30 June 2022","No. of patients with their own eggs in storage as of 30 June 2022","No. of eggs in storage as of 30 June 2022","No. of patients with their own embryos in storage as of 30 June 2022","No. of embryos in storage as of 30 June 2022"]
["Adora Fertility ",157,"n/a",32,259,978,3048]
["Ballarat IVF",189,0,77,1100,513,1822]
["City Fertility Centre, all sites",586,0,249,2695,1352,4303]
["Genea",59,0,40,387,62,186]
["Melbourne IVF, all sites including RWH",1906,483,2908,40513,6971,25202]
["Monash IVF, all sites",1908,68,1617,20832,4232,14446]
["Newlife IVF",149,0,231,3445,845,3468]
["Number 1 Fertility",300,1,1335,19700,1578,6894]
["Aggregated total",5254,552,6489,88931,16531,59369]
[]
[]
["Table 6.2 Storage of donor sperm, 2021-22 financial year"]
[]
["Registered ART provider (all sites)","No. of donors whose sperm is stored and available as of 1 July 2021",null,null,"No. of donors whose sperm is stored and available as of 30 June 2022",null,null,"New donors recruited during 2021-22"]
[null,"Recipient recruited","Overseas sperm bank recruited","Clinic","Recipient recruited","Overseas sperm bank recruited","Clinic","Recipient recruited","Overseas sperm bank recruited","Clinic"]
[{"$nulls":3},"recruited",null,null,"recruited",null,null,"recruited"]
["Ballarat IVF",6,0,41,10,0,44,1,0,3]
["City Fertility Centre, all sites",24,0,85,29,0,27,13,0,40]
["Genea",4,11,1,6,9,2,3,0,1]
["Melbourne IVF, all sites including RWH",100,4,232,125,4,245,41,0,27]
["Monash IVF, all sites",147,8,270,168,23,308,21,15,21]
["Newlife IVF",29,4,32,37,5,47,12,0,16]
["Number 1 Fertility",27,0,1,45,0,1,24,0,0]
["Aggregated total",337,27,662,420,41,674,115,15,108]
[]
[]
[]
["Table 6.3 Storage of donor eggs, 2021-22 financial year"]
[]
["Registered ART provider (all sites)","No. of donors whose eggs are stored and available as of 1 July 2021",null,null,"No. of donors whose eggs are stored and available as of 30 June 2022",null,null,"New donors recruited during 2021-22"]
[null,"Recipient recruited","Overseas egg bank recruited","Clinic","Recipient recruited","Overseas egg bank recruited","Clinic","Recipient recruited","Overseas egg bank recruited","Clinic"]
[{"$nulls":3},"recruited",null,null,"recruited",null,null,"recruited"]
["City Fertility Centre, all sites",1,0,4,0,0,4,63,0,6]
["Melbourne IVF, all sites including RWH",10,0,3,10,0,7,5,0,4]
["Monash IVF, all sites",1,34,0,10,26,0,59,45,1]
["Newlife IVF",0,0,0,0,0,0,16,0,0]
["Number 1 Fertility",0,14,0,1,25,0,1,40,0]
["Aggregated total",12,48,7,21,51,11,144,85,11]
[]
["Table 6.4 Storage of donor embryos, 2021-22 financial year"]
["This table referes to donated embryos, it does not include embryos that contain donor gametes as this is covered in table 6.5"]
["Registered ART provider (all sites)","No. of embryo donors whose embryos were stored and available as of 1 July 2021",null,"No. of embryo donors whose embryos were stored and availableas of 30 June 2022",null,"New donors recruited during 2021-22"]
[null,"Recipient recruited","Clinic","Recipient recruited","Clinic","Recipient recruited","Clinic"]
[null,null,"recruited",null,"recruited",null,"recruited"]
["Ballarat IVF",3,8,3,7,2,0]
["City Fertility Centre, all sites",5,0,3,0,6,0]
["Genea",0,0,0,0,0,0]
["Melbourne IVF, all sites including RWH",15,29,13,27,8,12]
["Monash IVF, all sites",18,31,20,26,7,1]
["Newlife IVF",1,0,1,0,0,0]
["Aggregated total",42,68,40,60,23,13]
[]
[]
["Table 6.5 Storage of embryos that contain donor gametes, 2021-22 financial year"]
["This table does include embryos that contain donor gametes"]
["Registered ART provider (all sites)","No. of embryos that contain donor gametes that are stored and available as of 1 July 2021",null,"No. of embryos that contain donor gametes that are stored and availableas of 30 June 2022"]
[null,"Donor sperm","Donor eggs","Donor sperm","Donor eggs"]
["Ballarat IVF",120,74,186,84]
["City Fertility Centre, all sites",641,240,1084,327]
["Genea",12,17,19,23]
["Melbourne IVF, all sites including RWH",1543,418,1687,483]
["Monash IVF, all sites",2487,805,2617,893]
["Newlife IVF",247,74,564,145]
["Number 1 Fertility",84,137,166,324]
["Aggregated total",5134,1765,6323,2279]

{"sheet":"Section 7 - PGT","index":8,"n_rows":40,"n_cols":8,"rows_kept":40,"merged":[[5,0,6,0],[5,1,6,1],[5,3,6,3],[5,4,6,4],[5,5,6,5],[7,0,7,5],[17,0,18,0],[17,1,18,1],[17,2,18,2],[17,3,18,3],[17,4,18,4],[17,5,18,5],[17,6,18,6],[17,7,18,7],[19,0,19,7],[29,0,30,0],[29,1,30,1],[29,2,30,2],[29,3,30,3],[29,4,30,4],[29,5,30,5],[31,0,31,5]]}
["SECTION 7"]
["Preimplantation genetic testing, 2021-22 financial year"]
[]
["Table 7 Preimplantation testing (PGT), 2021-22 financial year"]
[]
["Registered ART provider (all sites)","No. of women who had embryos tested","No. of embryos","No. of embryos deemed suitable for transfer","No. of women who had an embryo transer**","No. of embryos transferred following PGT"]
[null,null,"tested*"]
["Preimplantation testing for single gene disorders (PGT-M), Preimplantation testing for structural rearrangements (PGT-SR) and Sex selection "]
["Ballarat IVF ****","NA","NA",0,1,1]
["City Fertility Centre, all sites",14,57,11,7,7]
["Genea",6,17,7,1,1]
["Melbourne IVF, all sites including Reproductive services   ",147,958,393,196,197]
["Monash IVF, all sites",73,330,138,28,80]
["Newlife IVF",20,120,28,16,31]
["Number 1 Fertility",53,317,163,43,57]
["Aggregated total",313,{"v":1799,"d":"1,799"},740,292,374]
["PGT-M: preimplantation genetic testing for single gene disorders, PGT-SR: preimplantation genetic testing for structural rearrangements"]
["Registered ART provider (all sites)","No. of women who had embryos tested","No. of embryos tested*","No. of embryos deemed euploid after PGT-A","No. of embryos deemed mosaic after PGT-A","No of embryos deemed inconclusive or no result after PGT-A","No. of women who had an embryo transer following PGT-A**","No. of embryos transferred following PGT-A"]
[]
["Preimplantation testing for aneuploidy (incorrect chromasomal numbers, PGT-A)"]
["Ballarat IVF ****","NA","NA","n/a","n/a","n/a",1,2]
["City Fertility Centre, all sites",55,232,103,29,17,31,42]
["Genea",38,101,45,8,0,12,17]
["Melbourne IVF, all sites including Reproductive services   ",471,{"v":1780,"d":"1,780"},764,94,78,557,574]
["Monash IVF, all sites",493,{"v":1435,"d":"1,435"},783,117,94,415,531]
["Newlife IVF",324,{"v":1409,"d":"1,409"},594,196,51,207,296]
["Number 1 Fertility",568,{"v":2204,"d":"2,204"},976,343,73,433,571]
["Aggregated total",{"v":1949,"d":"1,949"},{"v":7161,"d":"7,161"},{"v":3265,"d":"3,265"},787,313,{"v":1656,"d":"1,656"},{"v":2033,"d":"2,033"}]
["PGT-A: preimplantation genetic screening for aneuploidy"]
["Registered ART provider (all sites)","No. of women who had embryos tested","No. of embryos tested*","No. of embryos deemed suitable for transfer","No. of women who had an embryo transer**","No. of embryos transferred following PGT"]
[]
["Non-invasive preimplantation genetic testing for aneuploidy (NIPGT)***"]
["Ballarat IVF****","NA","NA",0,1,1]
["Monash IVF, all sites",0,0,0,30,35]
["Aggregated total",0,0,0,31,36]
["NIPGT: non-invasive preimplantation genetic testing for aneuploidy"]
["* Either fresh embryos or thawed frozen embryos may be tested. Some patients will have some fresh and thawed frozen embryos tested."]
["** Women may have treatment using embryos tested and stored in a prior year"]
["*** Non-invasive PGT-A. Note that some women will have some embryos biopsied using standard PGT-A and some tested by NIPGT."]
["**** Some clinics that may not undertake PGT, may receive embryos transported from another clinic with PGT information"]

{"sheet":"Treatment cycles","index":9,"n_rows":27,"n_cols":15,"rows_kept":27}
["Treatment cycles"]
[]
["Figure 7, Number of patients and treatment cycles per financial year, 2008-09 to 2021-22"]
[null,"2008/09","2009/10","2010/11","2011/12","2012/13","2013/14","2014/15","2015/16","2016/17","2017/18","2018/19","2019/20","2020/21","2021/22"]
["Number of patients",9262,9525,9685,10252,10598,11113,11317,12182,12885,12378,12871,13041,15674,16971]
["< 35 years",3387,3426,3515,3695,3893,4165,4281,4500,4608,4588,4729,4847,5834,6318]
["35-39 years",3520,3585,3523,3758,3780,3954,4058,4425,4817,4767,5172,5185,6224,6640]
["≥ 40 years",2355,2514,2647,2799,2925,2994,2978,3257,3460,3023,3271,3009,3616,4013]
["< 35 years",{"v":36.56877564240985,"d":"36.6"},{"v":35.968503937007874,"d":"36.0"},{"v":36.293236964377904,"d":"36.3"},{"$f":"E6/E5*100","v":{"v":36.04174795161919,"d":"36.0"}},{"v":36.73334591432346,"d":"36.7"},{"v":37.47862863313237,"d":"37.5"},{"v":37.8280463020235,"d":"37.8"},{"v":36.93974716795272,"d":"36.9"},{"v":35.76251455180442,"d":"35.8"},{"v":37.06576183551462,"d":"37.1"},{"v":36.741512298583984,"d":"36.7"},{"v":37.19950866699219,"d":"37.2"},37.2,{"v":37.228214263916016,"d":"37.2"}]
["35-39 years",{"v":38.00475059382423,"d":"38.0"},{"v":37.637795275590555,"d":"37.6"},{"v":36.375838926174495,"d":"36.4"},{"$f":"E7/E5*100","v":{"v":36.65626219274288,"d":"36.7"}},{"v":35.667107001321,"d":"35.7"},{"v":35.5799514082606,"d":"35.6"},{"v":35.857559423875585,"d":"35.9"},{"v":36.324084715153504,"d":"36.3"},{"v":37.38455568490493,"d":"37.4"},{"v":38.51187590887057,"d":"38.5"},{"v":40.18335723876953,"d":"40.2"},39.8,39.7,{"v":39.12556838989258,"d":"39.1"}]
["≥ 40 years",{"v":25.426473763765927,"d":"25.4"},{"v":26.393700787401574,"d":"26.4"},{"v":27.3309241094476,"d":"27.3"},{"$f":"E8/E5*100","v":{"v":27.301989855637927,"d":"27.3"}},{"v":27.599547084355542,"d":"27.6"},{"v":26.94141995860704,"d":"26.9"},{"v":26.31439427410091,"d":"26.3"},{"v":26.736168116893776,"d":"26.7"},{"v":26.85292976329065,"d":"26.9"},{"v":24.4223622556148,"d":"24.4"},{"v":25.413721084594727,"d":"25.4"},23.1,23.1,{"v":23.64621925354004,"d":"23.6"}]
[]
["Number of cycles",17687,18530,18057,19361,19847,20632,20585,22488,24009,23042,23586,23509,29894,30895]
{"$rows_empty":7}
["Note:"]
["AI was not report for 2008/09"]
["2008/09, 2009/10, 2010/11, 2011/12, 2012/13, 2013/14, 2014/15, 2015/16, 2016/17, 2017/18, 2018/19, 2019/20 data were from the final outcome data"]
["2020/21 data were from the treatment data "]
[]
[]
["Transposed table from figure source data can be found on page 22 of the annual report "]

{"sheet":"Donor Registers","index":10,"n_rows":47,"n_cols":7,"rows_kept":47,"merged":[[4,1,4,6],[11,0,11,1],[13,0,13,3],[30,0,30,1],[32,0,32,4]]}
["Donor Registers"]
[]
["Pregnancy and birth notifications"]
[]
[null,"Donation Type"]
[null,"Egg","Sperm","Egg and Sperm","Embryo","Surrogacy (Egg Donor)  ","Total"]
["Births",127,771,32,22,18,970]
["Pregnancies / Unknown Outcome on 30 June 2022",33,180,6,2,5,226]
["Total",160,951,38,24,23,1196]
[]
[]
["Central Register"]
[]
["Applications to the Central Register",{"$nulls":3},83]
[]
[]
["Donors added to the Central Register in 2021-22"]
[null,"Donors"]
[null,"Egg","Sperm","Embryo","Total"]
["Added in 2021-22",72,136,20,228]
["Total in Central Register 30 June 2022",2307,2276,"63*",4646]
["*Embryo donors were previously recorded as egg or sperm donors and research is continuing  to identify these donors."]
[]
[]
[]
["On 30 June 2022 there were 34,617 people recorded in the Central Register. Approximately 500 people are recorded twice as they have more than one role (I.e. parent and donor)."]
["Donors    ","Donor-conceived Persons","Parents (inc. recipients and partners)","  Total"]
[{"v":4646,"d":"4,646"},{"v":13232,"d":"13,232"},{"v":16739,"d":"16,739"},{"v":34617,"d":"34,617"}]
[]
[]
["Voluntray Register"]
[]
["Applications to the Voluntary Register",{"$nulls":4},132]
[]
["People recorded in the Voluntary Register as of 30 June 2022"]
["Age as of 30 June 2022","Donors","Donor-conceived people","Parents (including recipients and partners)","Relatives","Total"]
["0-9","-","-","-","-",0]
["10-19","-",4,"-","-",4]
["20-29",5,36,2,1,44]
["30-39",23,134,54,2,213]
["40-49",46,80,179,3,308]
["50-59",87,1,149,"-",237]
["60-69",110,"-",54,2,166]
["70-79",66,"-",18,1,85]
["80+",9,"-","-","-",9]
["Deceased",5,2,3,"-",10]
["Total",351,257,459,9,1076]

{"sheet":"Import and export","index":11,"n_rows":17,"n_cols":4,"rows_kept":17,"merged":[[4,1,4,2]]}
["Import and Export"]
[]
[]
["Outcome of import and export applications – 1 July 2021 to 30 June 2022"]
[null,"Individual",null,"Class"]
[null,"Import","Export","Import"]
["Applications received",65,53,"50 [1]"]
["Approved / Approved with conditions",57,49,"49 [2]"]
["Withdrawn",3,4,0]
["Declined",0,0,0]
["Pending*",7,3,"2 [3]"]
["*Pending means the application was incomplete or further information was required from the applicant or their ART provider.  "]
[]
[]
["[1] These 50 class applications were on behalf of 287 applicants."]
["[2] These 49 class applications were on behalf of 283 applicants."]
["[3] These two class applications wereon behalf of 5 applicants."]